bitfinex/quotes_ETHUSD_20250814
["timestamp","ask_amount","ask_price","bid_price","bid_amount"]
[1755141670177,0.003,4758.7,4757.5,2.57006246]
[1755141670378,0.003,4758.7,4757.7,1.4871986]
[1755141670579,0.003,4758.7,4758.3,1.4871986]
[1755141670788,0.003,4758.7,4758.5,1.4871986]
[1755141670971,0.003,4758.7,4758.6,10.2915986]
[1755141671170,0.003,4758.7,4758.6,10.84674474]
[1755141671490,0.003,4758.7,4758.6,9.35954614]
[1755141673096,0.003,4758.7,4758.6,9.30714614]
[1755141673597,0.003,4758.7,4758.6,9.35954614]
[1755141673896,0.003,4758.7,4758.6,10.78954614]
[1755141674477,0.003,4758.7,4758.6,9.35954614]
[1755141674688,0.003,4758.7,4758.6,10.78954614]
[1755141674996,0.003,4758.7,4758.6,9.35954614]
[1755141675188,0.003,4758.7,4758.6,9.30714614]
[1755141675387,0.003,4758.7,4758.6,7.55766741]
[1755141675583,0.003,4758.7,4758.6,9.30714614]
[1755141675891,0.003,4758.7,4758.6,10.86006741]
[1755141676298,0.003,4758.7,4758.6,9.35954614]
[1755141676663,0.003,4758.7,4758.6,9.30714614]
[1755141677900,0.003,4758.7,4758.6,8.84014614]
[1755141678098,0.003,4758.7,4758.6,9.30714614]
[1755141678676,0.003,4758.7,4758.6,5.59014614]
[1755141678892,0.003,4758.7,4758.6,8.83914614]
[1755141679394,0.003,4758.7,4758.6,8.284]
[1755141680085,0.003,4758.7,4758.6,8.751]
[1755141680687,0.003,4758.7,4758.6,8.284]
[1755141680870,0.003,4758.7,4758.6,8.751]
[1755141681071,0.003,4758.7,4758.6,8.8034]
[1755141681299,0.003,4758.7,4758.6,9.73558614]
[1755141682273,0.003,4758.7,4758.6,11.23610741]
[1755141682677,0.003,4758.7,4758.6,9.73558614]
[1755141683470,0.003,4758.7,4758.6,11.23610741]
[1755141683673,0.003,4758.7,4758.6,9.68318614]
[1755141683917,0.003,4758.7,4758.6,9.73558614]
[1755141685697,0.003,4759.1,4758.7,4.287]
[1755141685901,0.003,4759.1,4758.8,15.23846386]
[1755141686101,0.003,4759.1,4758.9,11.8856]
[1755141686420,0.003,4759.1,4759.0,8.046]
[1755141687600,0.003,4759.1,4759.0,13.08]
[1755141688533,0.003,4759.1,4759.0,13.0276]
[1755141688820,0.003,4759.1,4759.0,14.01218614]
[1755141689832,0.003,4760.2,4759.1,3.71093]
[1755141690037,0.003,4760.2,4759.8,1.49517168]
[1755141690238,0.003,4760.2,4759.9,3.247]
[1755141690537,0.003,4760.2,4759.9,3.7056]
[1755141690714,0.003,4760.2,4760.0,0.52007717]
[1755141691031,0.003,4760.2,4760.1,3.247]
[1755141691536,0.003,4760.2,4760.1,3.35310303]
[1755141692044,0.4403,4760.2,4760.1,3.35310303]
[1755141692334,0.9039,4760.2,4760.1,3.247]
[1755141692537,0.9039,4760.2,4760.1,4.05240772]
[1755141693015,0.4403,4760.2,4760.1,0.80540772]
[1755141693217,0.9039,4760.2,4760.1,3.247]
[1755141694453,0.4403,4760.2,4760.1,3.247]
[1755141694812,0.9039,4760.2,4760.1,3.247]
[1755141695346,0.003,4760.2,4760.1,3.247]
[1755141695633,0.4403,4760.2,4760.1,3.247]
[1755141695837,0.4403,4760.2,4760.1,3.5717]
[1755141696313,0.9039,4760.2,4760.1,3.5717]
[1755141697112,0.9039,4760.2,4759.0,6.52917168]
[1755141697333,0.9009,4760.1,4759.1,3.246]
[1755141697811,0.9009,4760.0,4759.1,3.246]
[1755141698015,0.003,4760.2,4759.1,3.246]
[1755141698307,0.9009,4759.9,4759.2,4.23418198]
[1755141698614,0.003,4760.2,4759.2,0.98818198]
[1755141698615,0.9009,4759.8,4759.2,0.98818198]
[1755141698819,0.003,4760.2,4759.3,3.246]
[1755141698820,0.9009,4759.7,4759.3,3.246]
[1755141699053,0.003,4760.2,4759.4,3.246]
[1755141699215,0.9009,4759.6,4759.4,3.246]
[1755141699409,0.003,4760.2,4759.4,3.246]
[1755141699615,0.9009,4759.5,4759.4,3.246]
[1755141701066,18.15370061,4759.5,4759.0,5.034]
[1755141701233,1.81537006,4759.4,4759.1,3.246]
[1755141701433,2.71627006,4759.4,4759.1,3.246]
[1755141701638,17.25280061,4760.0,4759.1,3.246]
[1755141701940,0.9009,4759.3,4759.1,3.246]
[1755141702146,0.9009,4759.2,4759.1,3.246]
[1755141703436,18.15370061,4759.2,4759.1,3.246]
[1755141703758,18.15370061,4759.2,4759.0,5.034]
[1755141703971,2.71627006,4759.1,4757.5,5.033]
[1755141704176,17.25280061,4758.5,4757.5,5.033]
[1755141704539,0.9009,4758.4,4757.5,5.033]
[1755141704940,0.9009,4758.3,4757.6,3.246]
[1755141705153,0.19560039,4759.2,4757.6,3.246]
[1755141705339,0.9009,4758.2,4757.6,3.246]
[1755141705563,0.9009,4758.1,4757.6,3.246]
[1755141705765,0.19560039,4759.2,4757.6,3.246]
[1755141705766,0.9009,4758.0,4757.6,3.246]
[1755141706070,0.9009,4757.9,4757.6,3.246]
[1755141706256,0.9009,4757.8,4757.6,3.246]
[1755141706457,0.9009,4757.7,4757.6,3.246]
[1755141707759,0.4373,4757.7,4757.6,3.246]
[1755141707961,0.4373,4758.2,4757.6,3.246]
[1755141708956,0.4373,4758.2,4757.6,4.0739]
[1755141709773,14.9373,4758.2,4757.6,4.0739]
[1755141709973,0.4373,4758.2,4757.6,4.0739]
[1755141710473,0.4636,4758.5,4757.6,4.0739]
[1755141710675,0.4373,4758.6,4757.6,4.0739]
[1755141710883,0.4373,4758.6,4757.7,0.66775]
[1755141712581,14.5,4759.3,4757.7,0.66775]
[1755141712582,0.4597,4759.2,4757.7,0.66775]
[1755141712782,0.4597,4759.2,4757.8,0.4538]
[1755141713085,0.4597,4759.2,4757.9,3.246]
[1755141713281,0.4597,4759.2,4758.0,0.441995]
[1755141713501,0.4715,4759.1,4758.1,3.246]
[1755141713696,0.4597,4759.0,4758.2,3.246]
[1755141713859,0.4715,4758.9,4758.2,3.246]
[1755141714061,0.4597,4758.8,4758.2,3.246]
[1755141714497,0.4715,4758.7,4758.2,3.246]
[1755141714784,0.9312,4758.6,4758.2,3.246]
[1755141715003,14.5,4759.3,4758.2,3.246]
[1755141715300,2.3812,4759.2,4757.5,5.033]
[1755141715469,2.3812,4759.2,4757.6,3.246]
[1755141715793,0.9312,4759.1,4757.6,3.246]
[1755141715999,14.5,4758.6,4757.6,3.246]
[1755141716194,14.9149907,4758.6,4757.6,3.246]
[1755141716402,0.9312,4758.5,4757.6,3.246]
[1755141716902,0.9312,4758.4,4757.6,3.246]
[1755141717101,0.9312,4758.3,4757.6,3.246]
[1755141717277,0.4597,4758.2,4757.6,3.246]
[1755141717902,0.4715,4758.1,4757.6,3.246]
[1755141718109,0.9312,4758.0,4757.6,3.246]
[1755141718284,14.9149907,4758.6,4757.6,3.246]
[1755141718614,0.9312,4757.9,4757.6,3.246]
[1755141718803,0.9312,4757.8,4757.6,3.246]
[1755141719096,0.4597,4757.7,4757.6,3.246]
[1755141719477,14.5,4758.6,4757.6,3.246]
[1755141719803,0.4597,4759.3,4757.6,3.246]
[1755141720004,0.4597,4759.3,4757.7,1.3341]
[1755141720196,14.9597,4759.3,4757.7,1.3341]
[1755141720703,14.9597,4759.3,4757.8,0.4538]
[1755141721497,14.9597,4759.3,4757.7,0.8279]
[1755141721697,37.43931228,4758.5,4757.5,5.033]
[1755141721874,0.9312,4758.4,4757.6,3.246]
[1755141722074,37.43931228,4758.5,4757.6,3.246]
[1755141722075,0.9312,4758.3,4757.6,3.246]
[1755141722390,14.5,4758.2,4757.6,3.246]
[1755141722597,0.4715,4758.8,4757.6,3.246]
[1755141722791,0.4597,4758.4,4757.7,0.8279]
[1755141723099,14.5,4758.4,4757.7,0.8279]
[1755141723406,0.4597,4759.0,4757.7,0.8279]
[1755141723780,37.43931228,4758.8,4757.5,5.033]
[1755141723984,37.43931228,4757.8,4756.2,1.49517168]
[1755141724179,37.43931228,4757.8,4755.7,5.035]
[1755141724180,0.9312,4757.7,4756.3,3.245]
[1755141724407,0.9312,4757.7,4756.4,3.245]
[1755141724617,0.4597,4757.7,4756.4,3.245]
[1755141724789,14.5,4757.6,4756.5,0.36988]
[1755141724990,0.9312,4757.5,4756.6,3.245]
[1755141725326,0.9312,4757.5,4755.7,5.035]
[1755141725327,0.9312,4757.5,4756.7,3.245]
[1755141725492,0.9312,4757.4,4756.7,3.245]
[1755141725813,14.5,4756.8,4756.7,3.245]
[1755141726042,14.5,4756.8,4754.7,0.4538]
[1755141726043,54.32051228,4756.8,4754.0,1.49517168]
[1755141726188,0.9312,4756.7,4754.1,3.246]
[1755141726519,37.43931228,4755.9,4754.1,3.246]
[1755141726719,14.5,4755.3,4754.2,0.8282]
[1755141727025,14.5,4755.3,4754.1,3.246]
[1755141727026,0.9312,4755.2,4754.1,3.246]
[1755141727523,0.4597,4755.1,4754.1,3.246]
[1755141727732,0.1048,4757.2,4754.1,3.246]
[1755141727733,14.5,4755.0,4754.2,0.0524]
[1755141727883,0.4597,4757.5,4754.2,0.5062]
[1755141728084,38.37051228,4757.4,4754.3,0.0524]
[1755141728315,14.5,4756.9,4754.4,0.4538]
[1755141728489,0.4597,4758.1,4754.6,37.43931228]
[1755141728682,0.4597,4758.1,4754.7,3.7522]
[1755141729084,14.5,4757.8,4754.8,0.5062]
[1755141729295,14.5,4757.8,4754.9,0.0524]
[1755141729497,37.43931228,4757.2,4755.0,3.248]
[1755141729796,37.43931228,4756.9,4755.0,3.248]
[1755141730001,0.9312,4756.8,4755.1,0.3248]
[1755141730203,14.5,4756.7,4755.1,0.3248]
[1755141730404,0.4597,4756.6,4755.1,0.3248]
[1755141730711,37.43931228,4758.1,4755.1,0.3248]
[1755141730885,1.12650375,4758.0,4755.2,0.4538]
[1755141731081,14.5,4757.9,4755.3,0.45506]
[1755141731388,0.91337241,4759.7,4755.3,0.45506]
[1755141731389,0.4715,4759.7,4755.6,37.43931228]
[1755141731595,0.4715,4759.7,4756.1,20.0]
[1755141731798,15.12863245,4759.6,4756.2,6.63719]
[1755141732004,0.19528081,4759.5,4756.3,40.74771228]
[1755141732212,0.19526023,4759.5,4756.4,0.5062]
[1755141732712,38.37051228,4759.4,4756.5,0.0524]
[1755141732889,3.22758748,4759.3,4756.6,0.40266]
[1755141733091,0.19526023,4759.2,4756.6,0.40266]
[1755141733287,0.65496023,4759.2,4756.6,0.40266]
[1755141733492,14.5,4759.1,4756.6,0.40266]
[1755141733693,0.9312,4759.0,4756.6,0.40266]
[1755141734019,0.9312,4759.0,4756.7,0.411246]
[1755141734214,37.43931228,4758.0,4756.3,3.256]
[1755141734418,14.5,4757.6,4756.3,3.256]
[1755141734618,0.9312,4757.5,4756.3,3.256]
[1755141735119,0.4597,4757.4,4756.3,3.256]
[1755141735417,14.5,4757.6,4756.3,4.0854]
[1755141738216,37.43931228,4757.2,4756.3,3.256]
[1755141738517,0.9312,4757.5,4756.3,3.256]
[1755141738717,0.9312,4757.5,4756.2,5.038]
[1755141738718,14.5,4757.1,4756.2,5.038]
[1755141738921,14.5,4757.1,4756.3,3.268]
[1755141739222,0.9312,4757.0,4756.3,3.268]
[1755141739922,0.4597,4756.9,4756.3,3.268]
[1755141740421,0.9312,4756.9,4756.3,3.268]
[1755141740920,14.5,4756.4,4756.3,3.268]
[1755141741141,15.4312,4756.4,4756.3,3.268]
[1755141742023,16.2821935,4756.4,4756.3,3.268]
[1755141742417,16.2821935,4756.4,4756.1,3.269]
[1755141742608,0.919,4756.3,4756.2,3.275]
[1755141744640,3.275,4758.0,4756.2,3.275]
[1755141744641,0.4611,4756.8,4756.2,3.275]
[1755141746537,0.919,4757.4,4756.2,3.275]
[1755141746717,1.03043252,4757.4,4756.2,3.275]
[1755141746925,0.4611,4757.4,4756.2,3.275]
[1755141747421,0.4611,4757.4,4754.8,0.4934]
[1755141747422,0.919,4757.4,4754.8,0.4934]
[1755141747741,0.919,4757.4,4754.9,3.272]
[1755141748041,0.919,4757.3,4754.9,3.272]
[1755141748338,0.4611,4757.2,4755.0,0.81048]
[1755141748657,38.35831228,4757.2,4755.0,0.81048]
[1755141748839,37.43931228,4757.2,4755.0,0.81048]
[1755141749013,1.11445031,4757.1,4755.0,0.81048]
[1755141749214,37.43931228,4756.2,4754.9,3.272]
[1755141749417,0.919,4756.1,4754.9,3.272]
[1755141749945,0.919,4756.0,4754.9,3.272]
[1755141750152,0.4611,4755.9,4754.9,3.272]
[1755141750323,0.919,4755.9,4754.9,3.272]
[1755141750516,2.10112725,4755.8,4754.9,3.272]
[1755141750724,0.919,4755.7,4754.9,3.272]
[1755141751125,0.4611,4755.6,4754.9,3.272]
[1755141752660,0.4579,4755.5,4755.0,3.277]
[1755141752951,0.4579,4755.5,4754.3,5.037]
[1755141752952,2.56222725,4755.4,4754.3,5.037]
[1755141753153,1.11454831,4755.3,4754.4,3.277]
[1755141753655,0.919,4755.2,4754.4,3.277]
[1755141754133,0.4579,4755.2,4754.3,5.037]
[1755141754338,0.73655756,4755.1,4754.5,3.279]
[1755141754537,0.4611,4755.0,4754.5,3.279]
[1755141755044,0.4579,4755.6,4754.5,3.279]
[1755141755243,0.4579,4755.6,4754.3,5.037]
[1755141755244,0.4611,4755.5,4754.3,5.037]
[1755141755443,2.55902725,4755.4,4754.4,3.277]
[1755141755827,0.919,4755.3,4754.4,3.277]
[1755141756233,0.919,4755.2,4754.4,3.277]
[1755141756440,0.4611,4755.1,4754.4,3.277]
[1755141757761,0.4579,4755.0,4754.4,3.277]
[1755141757938,0.1114344,4754.9,4754.4,3.277]
[1755141758138,0.1114344,4754.9,4754.3,5.037]
[1755141758139,0.4611,4754.9,4754.5,3.277]
[1755141758346,2.10112725,4755.4,4754.5,3.277]
[1755141758552,0.919,4755.2,4754.5,3.277]
[1755141758755,0.4611,4755.1,4754.5,3.277]
[1755141762758,0.4611,4755.7,4754.5,3.277]
[1755141762971,0.4611,4755.7,4754.5,4.1084]
[1755141763156,0.919,4755.7,4754.5,4.1084]
[1755141763466,0.919,4755.7,4754.5,3.277]
[1755141763764,0.4579,4755.7,4754.5,3.277]
[1755141763959,0.4611,4755.6,4754.5,3.277]
[1755141765587,0.19524324,4756.3,4754.5,3.277]
[1755141765748,0.4611,4757.3,4754.6,0.5458]
[1755141765951,0.4611,4757.3,4754.7,0.0524]
[1755141766251,0.4579,4757.2,4754.8,3.276]
[1755141766450,0.4611,4757.1,4754.9,0.4934]
[1755141766650,0.4611,4757.1,4754.9,0.5458]
[1755141766852,0.4611,4757.1,4755.0,0.43458]
[1755141767276,0.4611,4757.1,4755.1,0.4934]
[1755141771379,0.4611,4757.1,4755.2,4.287]
[1755141771558,0.4611,4757.1,4755.3,0.5145]
[1755141772149,0.4611,4757.1,4755.4,11.427]
[1755141772360,0.4611,4757.1,4755.5,1.62797]
[1755141772580,0.4611,4757.1,4755.6,3.273]
[1755141772772,0.4611,4757.1,4755.7,4.287]
[1755141772959,0.4918,4757.0,4754.4,4.287]
[1755141773168,37.46970161,4756.7,4754.5,8.0221]
[1755141773348,0.9406,4756.6,4754.6,0.5145]
[1755141773969,0.4488,4756.5,4754.6,0.5145]
[1755141774173,0.4488,4756.5,4754.7,3.272]
[1755141774495,0.4488,4756.5,4754.8,0.4621]
[1755141774496,0.9406,4756.5,4754.8,0.4621]
[1755141774791,0.9406,4756.5,4754.8,0.5145]
[1755141776785,0.4488,4756.5,4754.9,4.287]
[1755141776982,0.4918,4756.9,4755.0,1.26945]
[1755141777166,0.4488,4756.8,4755.0,1.32185]
[1755141778274,0.4488,4756.8,4755.1,11.427]
[1755141778491,0.4488,4756.8,4755.2,11.427]
[1755141778865,0.4488,4756.8,4755.3,11.427]
[1755141779090,0.4488,4756.8,4755.4,12.1153]
[1755141779283,0.4488,4756.8,4755.5,14.7]
[1755141780162,0.4488,4756.8,4755.6,4.287]
[1755141780385,37.46970161,4756.6,4755.7,3.273]
[1755141780579,0.9406,4756.5,4755.8,3.272]
[1755141780962,0.4488,4756.4,4755.8,3.272]
[1755141782392,0.9406,4756.8,4755.8,3.272]
[1755141783174,0.4488,4757.4,4755.8,3.272]
[1755141783371,37.46970161,4758.7,4755.8,3.272]
[1755141783372,0.4488,4757.7,4755.9,5.1287]
[1755141783572,0.4488,4757.7,4755.9,0.8417]
[1755141783772,0.4488,4757.7,4756.0,0.4621]
[1755141785404,0.4918,4757.6,4756.0,0.4621]
[1755141785607,0.4488,4757.5,4756.0,0.4621]
[1755141785771,37.46970161,4757.3,4754.9,4.287]
[1755141785966,0.4918,4757.8,4755.0,4.41316717]
[1755141786296,0.4918,4757.8,4755.1,4.8015]
[1755141786297,0.4488,4757.6,4755.1,4.8015]
[1755141786484,0.4488,4757.6,4755.2,0.5145]
[1755141786693,0.4488,4758.1,4755.2,0.5145]
[1755141787003,0.4488,4758.1,4755.3,0.91838283]
[1755141787304,0.4918,4758.0,4755.4,0.5145]
[1755141787810,0.4488,4757.9,4755.5,0.0524]
[1755141788212,0.4918,4757.8,4755.4,0.4621]
[1755141788508,0.4918,4757.8,4755.5,0.56674828]
[1755141788509,0.4488,4757.7,4755.5,0.56674828]
[1755141788888,0.4918,4757.6,4755.6,4.287]
[1755141789081,0.4488,4757.5,4755.6,4.287]
[1755141789385,0.4488,4757.5,4755.7,0.4621]
[1755141789587,0.4488,4757.5,4755.8,4.19890172]
[1755141790998,0.4488,4757.5,4755.9,3.269]
[1755141791398,0.4918,4757.4,4755.9,3.269]
[1755141791587,0.4488,4757.3,4755.9,3.269]
[1755141792519,0.4488,4757.3,4756.0,3.266]
[1755141792719,0.4918,4757.2,4756.0,3.266]
[1755141792909,0.4488,4757.1,4756.0,3.266]
[1755141793106,0.4488,4757.5,4756.0,3.5926]
[1755141793478,37.46970161,4758.8,4756.1,0.5145]
[1755141793683,0.9406,4758.7,4756.1,0.5145]
[1755141794196,0.9406,4758.6,4756.1,0.5145]
[1755141794518,0.9406,4758.5,4756.1,0.5145]
[1755141794833,3.04172725,4758.4,4756.2,5.44871]
[1755141795005,2.59292725,4758.4,4756.2,5.44871]
[1755141795308,0.4488,4758.3,4756.2,5.44871]
[1755141795688,0.4918,4758.2,4756.2,5.44871]
[1755141796010,0.4488,4758.1,4756.2,5.44871]
[1755141796193,0.4488,4758.1,4756.3,0.75834]
[1755141796792,0.4918,4758.0,4756.3,0.75834]
[1755141796991,0.4488,4757.9,4756.4,3.265]
[1755141797195,0.4918,4757.8,4756.4,3.265]
[1755141797407,0.4488,4757.7,4756.4,3.265]
[1755141797588,0.4918,4757.6,4756.4,3.265]
[1755141797993,0.4488,4757.5,4756.4,3.265]
[1755141798416,37.96150161,4757.4,4756.5,3.267]
[1755141798716,0.9406,4757.3,4756.5,3.267]
[1755141798930,0.4488,4757.3,4756.5,3.267]
[1755141799587,0.4488,4757.3,4756.2,5.038]
[1755141799588,0.9406,4757.3,4756.2,5.038]
[1755141799789,0.9406,4757.3,4756.3,4.1985]
[1755141800383,0.4918,4758.1,4756.3,4.1985]
[1755141800584,0.4488,4758.0,4756.3,4.6606]
[1755141800983,0.4918,4757.9,4756.3,4.6606]
[1755141801210,0.4918,4757.9,4756.4,0.56315]
[1755141801412,0.4365,4757.8,4756.4,0.56315]
[1755141801915,0.4522,4757.7,4756.4,0.56315]
[1755141802115,0.4365,4757.6,4756.4,0.56315]
[1755141802537,0.4522,4757.5,4756.5,3.265]
[1755141802722,0.4365,4757.4,4756.5,3.265]
[1755141803227,0.4522,4757.3,4756.5,3.265]
[1755141803428,0.4365,4757.2,4756.5,3.265]
[1755141803739,0.4522,4757.1,4756.5,3.265]
[1755141804104,0.4365,4757.0,4756.5,3.265]
[1755141804431,0.4522,4756.9,4756.5,3.265]
[1755141804635,0.8887,4756.8,4756.5,3.265]
[1755141804936,0.8887,4756.7,4756.5,3.265]
[1755141805168,2.10112725,4757.6,4756.5,3.265]
[1755141805336,0.8887,4756.6,4756.5,3.265]
[1755141805535,0.8887,4756.6,4756.2,5.038]
[1755141805736,0.8887,4756.5,4756.3,3.262]
[1755141805945,0.4365,4756.4,4756.3,3.262]
[1755141806556,0.4365,4756.8,4756.3,3.262]
[1755141806756,0.4365,4756.7,4756.3,3.262]
[1755141806956,2.10112725,4757.6,4756.3,3.262]
[1755141807160,0.4365,4756.6,4756.2,5.038]
[1755141807361,0.4365,4756.5,4756.2,5.038]
[1755141807562,0.4365,4756.5,4756.3,3.26]
[1755141808034,0.4522,4756.7,4756.3,3.26]
[1755141808239,0.4365,4756.4,4756.3,3.26]
[1755141808565,0.4365,4756.4,4756.3,7.547]
[1755141809149,0.4365,4756.8,4756.3,7.547]
[1755141809347,0.8887,4756.7,4756.4,4.287]
[1755141809546,2.10112725,4757.4,4756.4,4.287]
[1755141809751,0.8887,4757.3,4756.4,4.287]
[1755141810146,0.8887,4757.2,4756.4,4.287]
[1755141810467,2.10112725,4757.4,4756.3,3.26]
[1755141810468,1.39779545,4757.1,4756.3,3.26]
[1755141810670,0.96129545,4757.1,4756.3,3.26]
[1755141810845,0.8887,4757.0,4756.3,3.26]
[1755141811045,0.4522,4757.0,4756.3,3.26]
[1755141811248,0.4365,4756.9,4756.3,3.26]
[1755141811555,0.8887,4756.9,4756.3,3.26]
[1755141812068,0.4365,4756.9,4756.3,3.26]
[1755141813542,0.4365,4756.9,4756.4,3.256]
[1755141813754,2.10112725,4757.4,4756.4,3.256]
[1755141813949,0.8887,4756.8,4755.6,0.4785]
[1755141814144,0.8887,4756.8,4755.7,3.255]
[1755141816742,0.4365,4756.8,4755.7,3.255]
[1755141817051,2.10112725,4757.5,4755.7,3.255]
[1755141817052,0.4365,4757.7,4755.8,0.5309]
[1755141817260,0.4365,4757.7,4755.9,0.37859]
[1755141817570,0.8887,4757.7,4755.9,0.37859]
[1755141817947,0.4365,4757.6,4755.9,0.37859]
[1755141818971,0.4365,4757.6,4756.0,0.4785]
[1755141819155,0.4365,4757.6,4756.1,0.416449]
[1755141823152,0.4522,4757.5,4756.1,0.416449]
[1755141823388,0.4365,4757.4,4756.1,0.416449]
[1755141823602,0.4365,4757.4,4756.1,5.454449]
[1755141823755,0.8887,4757.4,4756.2,7.539]
[1755141824076,1.33994271,4757.3,4756.2,7.539]
[1755141824283,0.4365,4757.2,4756.2,7.539]
[1755141824867,0.4365,4757.8,4756.2,7.539]
[1755141825064,0.4365,4757.8,4756.3,4.7655]
[1755141825690,0.4522,4757.7,4756.3,4.287]
[1755141825892,0.4365,4757.6,4756.3,4.287]
[1755141826070,0.4365,4757.6,4756.4,1.2577]
[1755141826261,0.4522,4757.5,4756.4,1.2577]
[1755141826587,0.4365,4757.4,4756.4,1.2577]
[1755141829710,0.4522,4757.3,4756.4,1.2577]
[1755141829920,14.5,4757.2,4756.5,3.252]
[1755141830214,0.8887,4757.1,4756.6,3.252]
[1755141830615,0.45243333,4758.3,4756.6,3.252]
[1755141830901,0.8887,4757.0,4756.6,3.252]
[1755141831096,14.5,4757.5,4756.6,3.252]
[1755141831097,0.8887,4756.9,4756.6,3.252]
[1755141831313,37.46970161,4758.4,4756.6,3.252]
[1755141831498,0.9141,4756.8,4756.6,3.252]
[1755141831699,14.9522,4756.7,4756.6,3.252]
[1755141832581,2.10112725,4758.3,4756.6,3.252]
[1755141832582,0.4522,4757.6,4756.6,3.252]
[1755141833102,14.5,4757.5,4756.6,3.252]
[1755141835398,0.4522,4757.4,4756.6,3.252]
[1755141835984,14.5,4757.3,4756.6,3.252]
[1755141838409,17.73937213,4757.2,4756.1,5.038]
[1755141838611,0.9141,4757.1,4756.2,3.252]
[1755141838909,0.4522,4757.0,4756.2,3.252]
[1755141839089,14.5,4756.9,4756.2,3.252]
[1755141839290,0.9141,4756.8,4756.3,3.252]
[1755141839486,1.69154232,4756.8,4756.1,5.038]
[1755141839686,0.4522,4756.7,4756.2,3.252]
[1755141840003,14.5,4756.6,4756.2,3.252]
[1755141840203,0.9141,4756.5,4756.2,3.252]
[1755141840406,2.53325423,4756.5,4754.7,1.49517168]
[1755141840610,17.28717213,4755.5,4754.4,5.038]
[1755141840807,15.4141,4755.4,4754.5,3.252]
[1755141841296,0.9141,4755.3,4754.4,5.038]
[1755141841622,3.01522725,4755.3,4754.5,3.252]
[1755141841930,15.4141,4755.2,4754.5,3.252]
[1755141842138,14.5,4755.2,4754.5,3.252]
[1755141842429,14.5,4755.2,4752.8,4.287]
[1755141842430,17.28717213,4755.0,4752.8,4.287]
[1755141842596,0.9141,4754.9,4752.9,4.1835]
[1755141842999,14.5,4754.5,4752.9,4.1835]
[1755141843198,0.9141,4754.4,4752.9,4.1835]
[1755141843394,0.9141,4754.4,4753.0,0.56315]
[1755141843713,0.9141,4754.4,4753.0,1.02885]
[1755141843934,14.5,4754.3,4753.1,3.252]
[1755141844434,0.4522,4754.2,4753.2,3.252]
[1755141844606,0.4522,4754.2,4753.3,4.287]
[1755141844804,0.4522,4754.2,4753.4,4.287]
[1755141845032,14.5,4754.1,4753.5,4.287]
[1755141845395,0.4522,4754.0,4753.6,4.287]
[1755141845600,0.9141,4754.0,4753.7,3.252]
[1755141845801,0.4522,4753.9,4753.8,3.252]
[1755141846032,14.5,4753.9,4753.8,3.252]
[1755141848698,14.9522,4753.9,4753.8,3.252]
[1755141849099,14.5,4753.9,4753.8,3.252]
[1755141850614,0.4619,4754.7,4753.8,3.252]
[1755141851208,14.5,4754.3,4753.8,3.252]
[1755141853137,14.5,4754.3,4753.8,3.62377]
[1755141853620,14.9522,4754.3,4753.8,3.62377]
[1755141854032,14.5,4754.3,4753.8,3.62377]
[1755141854214,14.5,4754.3,4753.8,3.252]
[1755141854739,14.5,4754.3,4753.9,0.4657]
[1755141854924,14.5,4754.3,4753.8,3.252]
[1755141855613,0.9141,4754.2,4753.9,3.252]
[1755141855916,40.75713166,4756.0,4754.0,3.252]
[1755141856117,2.10112725,4755.9,4754.1,3.252]
[1755141856340,2.10112725,4755.9,4754.2,3.252]
[1755141856507,2.10112725,4755.9,4754.3,3.252]
[1755141856703,14.5,4754.7,4754.4,3.252]
[1755141857436,2.10112725,4755.9,4752.7,5.038]
[1755141857437,37.50513166,4755.3,4752.7,5.038]
[1755141857643,37.50513166,4755.3,4752.8,3.78231403]
[1755141857846,14.5,4754.1,4752.8,3.78231403]
[1755141858143,0.9141,4754.0,4752.9,3.252]
[1755141858335,0.9141,4754.0,4753.0,0.8820314]
[1755141858533,0.4522,4753.9,4753.0,0.8820314]
[1755141859842,0.4522,4753.9,4752.9,3.252]
[1755141860743,0.4619,4753.8,4752.7,5.038]
[1755141860942,0.4522,4753.7,4752.8,3.252]
[1755141861123,0.4522,4753.7,4752.0,4.287]
[1755141861444,14.5,4753.0,4752.1,3.6807]
[1755141861742,0.927,4752.9,4752.2,3.252]
[1755141861946,0.927,4752.9,4752.3,3.252]
[1755141862248,0.471,4752.8,4752.4,3.252]
[1755141862415,15.427,4752.8,4752.4,3.252]
[1755141862729,14.5,4752.8,4752.5,0.8955]
[1755141862919,14.5,4752.8,4752.6,0.41475]
[1755141863127,14.5,4752.8,4752.6,1.31025]
[1755141863457,14.5,4752.8,4752.7,0.4657]
[1755141863857,14.5,4752.8,4752.6,0.41475]
[1755141864149,14.5,4752.8,4752.7,0.4657]
[1755141864328,0.471,4754.5,4752.7,1.351725]